[Event "Biel Master Tournament 2019"]
[Site "Biel"]
[Date "2019.07.30"]
[Round "8.14"]
[White "Bellahcene, Bilel"]
[Black "Morawietz, Dieter"]
[Result "1-0"]
[ECO "A32"]
[WhiteElo "2541"]
[BlackElo "2405"]
[Annotator "ChessBase"]
[PlyCount "65"]
[EventDate "2019.07.20"]
[EventType "swiss"]
[EventCountry "SUI"]
[SourceTitle "playchess.com"]
[Source "ChessBase"]
[SourceQuality "1"]
[TimeControl "40/5400+30:1800+30"]

1. d4 {[%emt 0:04:12]} Nf6 {[%emt 0:00:00]} 2. Nf3 {[%emt 0:00:05]} e6 {[%emt 0:00:00]} 3. c4 {[%emt 0:00:12]} c5 {[%emt 0:00:30]} 4. g3 {[%emt 0:00:27]} cxd4 {[%emt 0:00:15]} 5. Nxd4 {[%emt 0:00:03]} d5 {[%emt 0:00:12]} 6. Nc2 {[%emt 0:00:44]} Nc6 {[%emt 0:01:11]} 7. Bg2 {[%emt 0:00:05]} Bc5 {[%emt 0:01:38]} 8. cxd5 {[%emt 0:00:27]} exd5 {[%emt 0:00:52]} 9. O-O {[%emt 0:00:06]} O-O {[%emt 0:09:40]} 10. Nc3 {[%emt 0:00:03]} Be6 {[%emt 0:12:29]} 11. b3 {[%emt 0:09:14]} Rc8 {[%emt 0:05:05]} 12. Bb2 {[%emt 0:03:54]} Qd7 {[%emt 0:04:05]} 13. Rc1 {[%emt 0:08:38]} Rfd8 {[%emt 0:02:30]} 14. Na4 {[%emt 0:02:21]} Be7 {[%emt 0:00:13]} 15. Nd4 {[%emt 0:00:41]} Ne4 {[%emt 0:07:43]} 16. Nxe6 {[%emt 0:10:18]} Qxe6 {[%emt 0:00:12]} 17. e3 {[%emt 0:00:09]} b5 {[%emt 0:08:18]} 18. Nc3 {[%emt 0:02:03]} Bf6 {[%emt 0:00:46]} 19. Nxe4 {[%emt 0:11:21]} dxe4 {[%emt 0:00:09]} 20. Qe2 {[%emt 0:00:03]} Bxb2 {[%emt 0:00:18]} 21. Qxb2 {[%emt 0:00:04]} Nb4 {[%emt 0:09:18]} 22. Rxc8 {[%emt 0:14:14]} Rxc8 {[%emt 0:00:06]} 23. Qa3 {[%emt 0:00:43]} Nd3 {[%emt 0:22:52]} 24. Qxa7 {[%emt 0:02:08]} f5 {[%emt 0:00:28]} 25. f3 {[%emt 0:02:04]} exf3 {[%emt 0:01:00]} 26. Bxf3 {[%emt 0:00:43]} Rc5 {[%emt 0:03:19]} 27. e4 {[%emt 0:02:45]} g6 {[%emt 0:04:37]} 28. b4 {[%emt 0:03:42]} Re5 {[%emt 0:01:44]} 29. exf5 {[%emt 0:07:22]} gxf5 {[%emt 0:00:07]} 30. Qd4 {[%emt 0:04:21]} Qc4 {[%emt 0:01:55]} 31. Qd8+ {[%emt 0:01:55]} Kf7 {[%emt 0:00:56]} 32. Rd1 {[%emt 0:03:44]} Qc2 {[%emt 0:00:45]} 33. Bd5+ {[%emt 0:01:21]} 1-0

[Event "Biel Master Tournament 2019"]
[Site "Biel"]
[Date "2019.07.30"]
[Round "8.15"]
[White "Shchekachev, Andrei"]
[Black "Wong, Jianwen"]
[Result "1-0"]
[ECO "D39"]
[WhiteElo "2531"]
[BlackElo "2301"]
[Annotator "ChessBase"]
[PlyCount "73"]
[EventDate "2019.07.20"]
[EventType "swiss"]
[EventCountry "SUI"]
[SourceTitle "playchess.com"]
[Source "ChessBase"]
[SourceQuality "1"]
[TimeControl "40/5400+30:1800+30"]

1. Nf3 {[%emt 0:02:52]} Nf6 {[%emt 0:00:00]} 2. c4 {[%emt 0:00:05]} e6 {[%emt 0:00:00]} 3. Nc3 {[%emt 0:00:05]} d5 {[%emt 0:00:00]} 4. d4 {[%emt 0:00:08]} Bb4 {[%emt 0:00:00]} 5. Bg5 {[%emt 0:04:28]} dxc4 {[%emt 0:00:33]} 6. e4 {[%emt 0:00:14]} h6 {[%emt 0:00:51]} 7. Bxf6 {[%emt 0:00:14]} Qxf6 {[%emt 0:00:11]} 8. Bxc4 {[%emt 0:00:43]} c5 {[%emt 0:00:25]} 9. O-O {[%emt 0:01:28]} O-O {[%emt 0:00:11]} 10. e5 {[%emt 0:02:28]} Qd8 {[%emt 0:00:07]} 11. Ne4 {[%emt 0:00:11]} cxd4 {[%emt 0:00:18]} 12. Qe2 {[%emt 0:00:04]} Be7 {[%emt 0:00:12]} 13. Rad1 {[%emt 0:03:40]} Qc7 {[%emt 0:00:11]} 14. Ng3 {[%emt 0:02:15]} Rd8 {[%emt 0:01:58]} 15. Bd3 {[%emt 0:06:17]} Nd7 {[%emt 0:01:25]} 16. Qe4 {[%emt 0:02:51]} Nf8 {[%emt 0:00:08]} 17. Nh5 {[%emt 0:03:12]} g6 {[%emt 0:24:24]} 18. Rc1 {[%emt 0:17:34]} Qb6 {[%emt 0:00:05]} 19. Qf4 {[%emt 0:03:08]} gxh5 {[%emt 0:14:02]} 20. Qxh6 {[%emt 0:00:16]} Ng6 {[%emt 0:20:37]} 21. Bxg6 {[%emt 0:03:10]} fxg6 {[%emt 0:00:12]} 22. Qxg6+ {[%emt 0:00:12]} Kh8 {[%emt 0:11:32]} 23. Ng5 {[%emt 0:10:21]} Bxg5 {[%emt 0:00:40]} 24. Qxh5+ {[%emt 0:00:06]} Kg8 {[%emt 0:00:46]} 25. Qxg5+ {[%emt 0:00:08]} Kf7 {[%emt 0:05:59]} 26. Rfe1 {[%emt 0:04:54]} Rf8 {[%emt 0:05:13]} 27. Re4 {[%emt 0:03:36]} Ke8 {[%emt 0:01:29]} 28. Qg6+ {[%emt 0:00:56]} Kd8 {[%emt 0:02:21]} 29. Qg5+ {[%emt 0:02:29]} Ke8 {[%emt 0:00:45]} 30. Qh5+ {[%emt 0:04:16]} Kd8 {[%emt 0:04:35]} 31. Qh4+ {[%emt 0:01:34]} Ke8 {[%emt 0:00:07]} 32. Rxd4 {[%emt 0:01:00]} Rf7 {[%emt 0:03:09]} 33. Rcd1 {[%emt 0:01:57]} Bd7 {[%emt 0:02:49]} 34. Rxd7 {[%emt 0:00:45]} Rxd7 {[%emt 0:00:08]} 35. Qh8+ {[%emt 0:00:03]} Ke7 {[%emt 0:00:09]} 36. Qg7+ {[%emt 0:00:10]} Ke8 {[%emt 0:00:05]} 37. Rxd7 {[%emt 0:00:29]} 1-0

[Event "Biel Master Tournament 2019"]
[Site "Biel"]
[Date "2019.07.30"]
[Round "8.16"]
[White "Rahul Srivatshav P"]
[Black "Mastrovasilis, Athanasios"]
[Result "1/2-1/2"]
[ECO "A13"]
[WhiteElo "2414"]
[BlackElo "2518"]
[Annotator "ChessBase"]
[PlyCount "90"]
[EventDate "2019.07.20"]
[EventType "swiss"]
[EventCountry "SUI"]
[SourceTitle "playchess.com"]
[Source "ChessBase"]
[SourceQuality "1"]
[TimeControl "40/5400+30:1800+30"]

1. Nf3 {[%emt 0:09:02]} Nf6 {[%emt 0:01:09]} 2. c4 {[%emt 0:00:07]} e6 {[%emt 0:01:27]} 3. g3 {[%emt 0:00:09]} d5 {[%emt 0:00:33]} 4. Bg2 {[%emt 0:00:07]} dxc4 {[%emt 0:04:41]} 5. Qa4+ {[%emt 0:01:31]} Nbd7 {[%emt 0:04:45]} 6. Qxc4 {[%emt 0:00:34]} c5 {[%emt 0:00:10]} 7. O-O {[%emt 0:02:43]} b6 {[%emt 0:05:57]} 8. Nc3 {[%emt 0:12:06]} Bb7 {[%emt 0:03:17]} 9. Rd1 {[%emt 0:07:38]} a6 {[%emt 0:05:00]} 10. a4 {[%emt 0:02:32]} Rc8 {[%emt 0:09:55]} 11. b3 {[%emt 0:04:21]} Be7 {[%emt 0:04:50]} 12. Bb2 {[%emt 0:12:28]} O-O {[%emt 0:03:31]} 13. e4 {[%emt 0:04:48]} Ng4 {[%emt 0:15:04]} 14. Ne2 {[%emt 0:05:51]} Bf6 {[%emt 0:04:10]} 15. Bxf6 {[%emt 0:16:09]} Qxf6 {[%emt 0:02:46]} 16. Nf4 {[%emt 0:01:16]} Nde5 {[%emt 0:07:45]} 17. Qc3 {[%emt 0:00:23]} Nxf3+ {[%emt 0:08:08]} 18. Bxf3 {[%emt 0:02:05]} Ne5 {[%emt 0:00:08]} 19. Bg2 {[%emt 0:00:29]} Rfd8 {[%emt 0:01:07]} 20. b4 {[%emt 0:05:37]} c4 {[%emt 0:04:00]} 21. Qe3 {[%emt 0:02:30]} Rd6 {[%emt 0:01:12]} 22. Rac1 {[%emt 0:00:43]} Qd8 {[%emt 0:00:20]} 23. h4 {[%emt 0:02:25]} h6 {[%emt 0:01:23]} 24. Bf1 {[%emt 0:03:14]} Rd4 {[%emt 0:00:53]} 25. d3 {[%emt 0:01:21]} c3 {[%emt 0:03:37]} 26. Ne2 {[%emt 0:01:00]} Rxd3 {[%emt 0:01:12]} 27. Rxd3 {[%emt 0:00:19]} Qxd3 {[%emt 0:00:13]} 28. Rxc3 {[%emt 0:00:56]} Nf3+ {[%emt 0:01:33]} 29. Kg2 {[%emt 0:00:17]} Ne1+ {[%emt 0:01:32]} 30. Kg1 {[%emt 0:00:04]} Qxe3 {[%emt 0:00:56]} 31. fxe3 {[%emt 0:00:44]} Nc2 {[%emt 0:00:29]} 32. b5 {[%emt 0:00:49]} axb5 {[%emt 0:00:59]} 33. axb5 {[%emt 0:00:08]} Rxc3 {[%emt 0:00:25]} 34. Nxc3 {[%emt 0:00:06]} Nxe3 {[%emt 0:00:03]} 35. Be2 {[%emt 0:01:28]} Nc2 {[%emt 0:00:22]} 36. Kf2 {[%emt 0:00:36]} Nd4 {[%emt 0:00:49]} 37. Ke3 {[%emt 0:01:18]} e5 {[%emt 0:01:05]} 38. Na4 {[%emt 0:00:27]} Nxe2 {[%emt 0:02:27]} 39. Kxe2 {[%emt 0:00:05]} Bxe4 {[%emt 0:00:04]} 40. Nxb6 {[%emt 0:00:05]} Kf8 {[%emt 0:01:15]} 41. Nd7+ {[%emt 0:06:04]} Ke7 {[%emt 0:00:11]} 42. Nxe5 {[%emt 0:03:36]} Ke6 {[%emt 0:00:58]} 43. Nc4 {[%emt 0:01:27]} Kd5 {[%emt 0:01:48]} 44. Ke3 {[%emt 0:02:14]} Bg2 {[%emt 0:06:57]} 45. Nd2 {[%emt 0:02:06]} Ke5 {[%emt 0:08:43] Ke4+} 1/2-1/2

[Event "Biel Master Tournament 2019"]
[Site "Biel"]
[Date "2019.07.30"]
[Round "8.17"]
[White "Tania, Sachdev"]
[Black "Keymer, Vincent"]
[Result "1/2-1/2"]
[ECO "D24"]
[WhiteElo "2401"]
[BlackElo "2513"]
[Annotator "ChessBase"]
[PlyCount "98"]
[EventDate "2019.07.20"]
[EventType "swiss"]
[EventCountry "SUI"]
[SourceTitle "playchess.com"]
[Source "ChessBase"]
[SourceQuality "1"]
[TimeControl "40/5400+30:1800+30"]

1. d4 {[%emt 0:00:00]} Nf6 {[%emt 0:00:00]} 2. c4 {[%emt 0:00:00]} e6 {[%emt 0:00:00]} 3. Nf3 {[%emt 0:00:00]} d5 {[%emt 0:00:00]} 4. Nc3 {[%emt 0:00:00]} dxc4 {[%emt 0:00:00]} 5. Qa4+ {[%emt 0:01:45]} Bd7 {[%emt 0:00:21]} 6. Qxc4 {[%emt 0:00:09]} a6 {[%emt 0:00:10]} 7. Bg5 {[%emt 0:13:10]} b5 {[%emt 0:00:23]} 8. Qd3 {[%emt 0:05:40]} c5 {[%emt 0:00:08]} 9. Bxf6 {[%emt 0:04:19]} gxf6 {[%emt 0:04:13]} 10. e3 {[%emt 0:09:50]} Nc6 {[%emt 0:09:52]} 11. Be2 {[%emt 0:09:46]} c4 {[%emt 0:17:17]} 12. Qc2 {[%emt 0:10:15]} f5 {[%emt 0:19:36]} 13. O-O {[%emt 0:02:57]} Bg7 {[%emt 0:02:42]} 14. d5 {[%emt 0:07:36]} Ne7 {[%emt 0:08:11]} 15. e4 {[%emt 0:12:22]} fxe4 {[%emt 0:07:18]} 16. dxe6 {[%emt 0:00:43]} Bxe6 {[%emt 0:01:48]} 17. Rad1 {[%emt 0:02:19]} Qc8 {[%emt 0:07:52]} 18. Qxe4 {[%emt 0:06:20]} Bf5 {[%emt 0:01:18]} 19. Qe3 {[%emt 0:05:57]} Qe6 {[%emt 0:00:43]} 20. Qg5 {[%emt 0:03:41]} Qf6 {[%emt 0:01:51]} 21. Qg3 {[%emt 0:00:51]} O-O {[%emt 0:01:54]} 22. Rd6 {[%emt 0:00:06]} Be6 {[%emt 0:00:11]} 23. Nd4 {[%emt 0:01:12]} Nf5 {[%emt 0:01:23]} 24. Nxf5 {[%emt 0:00:06]} Qxf5 {[%emt 0:00:04]} 25. Bf3 {[%emt 0:00:34]} Rad8 {[%emt 0:03:07]} 26. Be4 {[%emt 0:01:54]} Qh5 {[%emt 0:00:18]} 27. Bf3 {[%emt 0:01:03]} Qe5 {[%emt 0:00:42]} 28. Rxa6 {[%emt 0:00:23]} b4 {[%emt 0:01:13]} 29. Nd1 {[%emt 0:00:22]} Qxg3 {[%emt 0:01:02]} 30. hxg3 {[%emt 0:00:04]} Rd2 {[%emt 0:03:51]} 31. Rb6 {[%emt 0:01:14]} b3 {[%emt 0:03:36]} 32. axb3 {[%emt 0:00:25]} cxb3 {[%emt 0:00:05]} 33. Be4 {[%emt 0:00:54]} Rc8 {[%emt 0:01:59]} 34. Ne3 {[%emt 0:00:28]} Bd4 {[%emt 0:01:33]} 35. Rb7 {[%emt 0:00:26]} Rc5 {[%emt 0:01:03]} 36. g4 {[%emt 0:00:24]} Bxe3 {[%emt 0:01:03]} 37. fxe3 {[%emt 0:00:02]} Rxb2 {[%emt 0:00:09]} 38. Kh2 {[%emt 0:01:06]} Re2 {[%emt 0:00:55]} 39. Rf3 {[%emt 0:00:26]} b2 {[%emt 0:00:32]} 40. Rh3 {[%emt 0:00:35]} h5 {[%emt 0:00:58]} 41. Rxh5 {[%emt 0:01:53]} Rxh5+ {[%emt 0:07:39]} 42. gxh5 {[%emt 0:00:09]} Kg7 {[%emt 0:02:37]} 43. Kg3 {[%emt 0:10:13]} Kh6 {[%emt 0:10:12]} 44. Kf3 {[%emt 0:09:01]} Rd2 {[%emt 0:00:42]} 45. g4 {[%emt 0:04:11]} Kg5 {[%emt 0:01:50]} 46. Rb5+ {[%emt 0:02:32]} Kh6 {[%emt 0:00:47]} 47. Rb6 {[%emt 0:01:08]} Kg5 {[%emt 0:01:02]} 48. Rb5+ {[%emt 0:00:04]} Kh6 {[%emt 0:02:05]} 49. Rb6 {[%emt 0:00:04]} Kg5 {[%emt 0:00:20]} 1/2-1/2

[Event "Biel Master Tournament 2019"]
[Site "Biel"]
[Date "2019.07.30"]
[Round "8.18"]
[White "Sukandar, Irine Kharisma"]
[Black "Santos Ruiz, Miguel"]
[Result "0-1"]
[ECO "B49"]
[WhiteElo "2396"]
[BlackElo "2567"]
[Annotator "ChessBase"]
[PlyCount "68"]
[EventDate "2019.07.20"]
[EventType "swiss"]
[EventCountry "SUI"]
[SourceTitle "playchess.com"]
[Source "ChessBase"]
[SourceQuality "1"]
[TimeControl "40/5400+30:1800+30"]

1. e4 {[%emt 0:00:35]} c5 {[%emt 0:00:59]} 2. Nf3 {[%emt 0:00:15]} e6 {[%emt 0:00:04]} 3. d4 {[%emt 0:00:18]} cxd4 {[%emt 0:00:05]} 4. Nxd4 {[%emt 0:00:05]} Nc6 {[%emt 0:00:03]} 5. Nc3 {[%emt 0:00:38]} Qc7 {[%emt 0:00:05]} 6. Be3 {[%emt 0:00:25]} a6 {[%emt 0:00:06]} 7. Be2 {[%emt 0:03:51]} b5 {[%emt 0:00:54]} 8. Nxc6 {[%emt 0:02:43]} Qxc6 {[%emt 0:00:07]} 9. O-O {[%emt 0:00:35]} Bb7 {[%emt 0:08:14]} 10. Bf3 {[%emt 0:08:37]} Rc8 {[%emt 0:08:39]} 11. Re1 {[%emt 0:08:01]} Qc7 {[%emt 0:11:51]} 12. e5 {[%emt 0:06:37]} f5 {[%emt 0:09:22]} 13. Bxb7 {[%emt 0:12:35]} Qxb7 {[%emt 0:01:07]} 14. a4 {[%emt 0:01:28]} b4 {[%emt 0:02:01]} 15. Ne2 {[%emt 0:02:47]} Ne7 {[%emt 0:00:38]} 16. Nf4 {[%emt 0:01:19]} g6 {[%emt 0:11:00]} 17. a5 {[%emt 0:02:14]} Bg7 {[%emt 0:02:02]} 18. Nd3 {[%emt 0:00:30]} Nd5 {[%emt 0:01:05]} 19. Bc5 {[%emt 0:05:00]} Qb5 {[%emt 0:05:13]} 20. Bd6 {[%emt 0:03:35]} Bh6 {[%emt 0:03:40]} 21. Qe2 {[%emt 0:04:53]} Rc6 {[%emt 0:00:26]} 22. f4 {[%emt 0:06:56]} Kf7 {[%emt 0:03:50]} 23. Qf2 {[%emt 0:03:27]} Rhc8 {[%emt 0:01:15]} 24. Qh4 {[%emt 0:01:42]} Bg7 {[%emt 0:02:01]} 25. Red1 {[%emt 0:11:23]} Rxc2 {[%emt 0:02:16]} 26. Ne1 {[%emt 0:00:21]} R2c4 {[%emt 0:12:28]} 27. Nf3 {[%emt 0:00:24]} h6 {[%emt 0:00:11]} 28. b3 {[%emt 0:00:32]} Rc3 {[%emt 0:00:43]} 29. Nd4 {[%emt 0:02:05]} Qb7 {[%emt 0:00:06]} 30. h3 {[%emt 0:01:16]} Ne3 {[%emt 0:00:55]} 31. Rd2 {[%emt 0:00:34]} Rc1+ {[%emt 0:00:11]} 32. Rxc1 {[%emt 0:00:04]} Rxc1+ {[%emt 0:00:02]} 33. Kf2 {[%emt 0:00:13]} Qxg2+ {[%emt 0:00:38]} 34. Kxe3 {[%emt 0:00:06]} Qe4+ {[%emt 0:00:09]} 0-1

[Event "Biel Master Tournament 2019"]
[Site "Biel"]
[Date "2019.07.30"]
[Round "8.19"]
[White "Akash G"]
[Black "Stany, G.A."]
[Result "1/2-1/2"]
[ECO "C47"]
[WhiteElo "2394"]
[BlackElo "2525"]
[Annotator "ChessBase"]
[PlyCount "92"]
[EventDate "2019.07.20"]
[EventType "swiss"]
[EventCountry "SUI"]
[SourceTitle "playchess.com"]
[Source "ChessBase"]
[SourceQuality "1"]
[TimeControl "40/5400+30:1800+30"]

1. e4 {[%emt 0:00:00]} e5 {[%emt 0:00:00]} 2. Nf3 {[%emt 0:00:04]} Nc6 {[%emt 0:00:00]} 3. Nc3 {[%emt 0:00:14]} Nf6 {[%emt 0:00:00]} 4. g3 {[%emt 0:00:11]} d5 {[%emt 0:07:13]} 5. exd5 {[%emt 0:00:12]} Nxd5 {[%emt 0:01:14]} 6. Bg2 {[%emt 0:00:11]} Nb6 {[%emt 0:00:24]} 7. O-O {[%emt 0:06:29]} Bd6 {[%emt 0:04:01]} 8. a4 {[%emt 0:07:37]} a5 {[%emt 0:02:26]} 9. d4 {[%emt 0:03:31]} O-O {[%emt 0:01:27]} 10. Nb5 {[%emt 0:04:04]} Bg4 {[%emt 0:10:04]} 11. h3 {[%emt 0:16:24]} Bxf3 {[%emt 0:05:41]} 12. Bxf3 {[%emt 0:00:08]} exd4 {[%emt 0:03:40]} 13. Nxd4 {[%emt 0:03:07]} Nxd4 {[%emt 0:04:57]} 14. Qxd4 {[%emt 0:00:10]} Rb8 {[%emt 0:02:30]} 15. Rd1 {[%emt 0:09:24]} Qe7 {[%emt 0:04:38]} 16. Qc3 {[%emt 0:04:16]} Bb4 {[%emt 0:16:48]} 17. Qb3 {[%emt 0:01:20]} Nd7 {[%emt 0:03:15]} 18. Bf4 {[%emt 0:05:29]} Nc5 {[%emt 0:03:07]} 19. Qc4 {[%emt 0:06:41]} Ne6 {[%emt 0:05:10]} 20. Be3 {[%emt 0:01:46]} Bc5 {[%emt 0:01:03]} 21. Bxc5 {[%emt 0:08:12]} Qxc5 {[%emt 0:02:11]} 22. Qxc5 {[%emt 0:00:32]} Nxc5 {[%emt 0:00:05]} 23. c3 {[%emt 0:00:20]} Rfd8 {[%emt 0:07:19]} 24. Rxd8+ {[%emt 0:04:04]} Rxd8 {[%emt 0:00:06]} 25. b4 {[%emt 0:00:20]} Rd3 {[%emt 0:08:02]} 26. Be2 {[%emt 0:10:50]} Rd2 {[%emt 0:00:14]} 27. bxc5 {[%emt 0:02:03]} Rxe2 {[%emt 0:00:04]} 28. Rb1 {[%emt 0:00:13]} Kf8 {[%emt 0:03:41]} 29. Rxb7 {[%emt 0:01:37]} Re4 {[%emt 0:00:46]} 30. Rxc7 {[%emt 0:00:28]} Rxa4 {[%emt 0:00:04]} 31. Kf1 {[%emt 0:01:27]} Rc4 {[%emt 0:00:13]} 32. Ke2 {[%emt 0:00:10]} Rxc3 {[%emt 0:00:05]} 33. Kd2 {[%emt 0:00:07]} Rf3 {[%emt 0:01:42]} 34. Ra7 {[%emt 0:01:35]} Ke8 {[%emt 0:01:05]} 35. Rxa5 {[%emt 0:02:59]} Rxf2+ {[%emt 0:01:41]} 36. Ke3 {[%emt 0:00:05]} Rg2 {[%emt 0:00:13]} 37. Kf3 {[%emt 0:01:23]} Rc2 {[%emt 0:01:25]} 38. Ke4 {[%emt 0:00:17]} Kd7 {[%emt 0:00:36]} 39. Ra7+ {[%emt 0:00:33]} Ke6 {[%emt 0:00:03]} 40. Ra6+ {[%emt 0:00:23]} Kd7 {[%emt 0:00:05]} 41. Ra7+ {[%emt 0:12:28]} Ke6 {[%emt 0:01:39]} 42. Kd4 {[%emt 0:01:49]} h5 {[%emt 0:08:48]} 43. h4 {[%emt 0:03:22]} Rc1 {[%emt 0:01:59]} 44. Ra6+ {[%emt 0:01:39]} Kd7 {[%emt 0:00:05]} 45. Rd6+ {[%emt 0:02:51]} Kc7 {[%emt 0:00:09]} 46. Ra6 {[%emt 0:03:58]} Kd7 {[%emt 0:01:23]} 1/2-1/2

[Event "Biel Master Tournament 2019"]
[Site "Biel"]
[Date "2019.07.30"]
[Round "8.20"]
[White "Omar, Noaman"]
[Black "Notkevich, Benjamin Arvola"]
[Result "0-1"]
[ECO "E10"]
[WhiteElo "2369"]
[BlackElo "2497"]
[Annotator "ChessBase"]
[PlyCount "72"]
[EventDate "2019.07.20"]
[EventType "swiss"]
[EventCountry "SUI"]
[SourceTitle "playchess.com"]
[Source "ChessBase"]
[SourceQuality "1"]
[TimeControl "40/5400+30:1800+30"]

1. d4 {[%emt 0:02:21]} Nf6 {[%emt 0:00:00]} 2. c4 {[%emt 0:00:09]} c5 {[%emt 0:00:00]} 3. d5 {[%emt 0:00:11]} b5 {[%emt 0:00:00]} 4. Nf3 {[%emt 0:01:05]} e6 {[%emt 0:00:47]} 5. Bg5 {[%emt 0:02:24]} b4 {[%emt 0:03:25]} 6. e4 {[%emt 0:01:15]} d6 {[%emt 0:00:06]} 7. a3 {[%emt 0:09:15]} Be7 {[%emt 0:01:34]} 8. axb4 {[%emt 0:08:05]} Nxe4 {[%emt 0:13:03]} 9. Bxe7 {[%emt 0:05:05]} Qxe7 {[%emt 0:00:05]} 10. bxc5 {[%emt 0:02:26]} exd5 {[%emt 0:05:01]} 11. Be2 {[%emt 0:04:28]} dxc4 {[%emt 0:01:30]} 12. O-O {[%emt 0:13:43]} O-O {[%emt 0:01:18]} 13. Bxc4 {[%emt 0:03:21]} Nxc5 {[%emt 0:03:40]} 14. b4 {[%emt 0:08:25]} Ne6 {[%emt 0:02:59]} 15. Nc3 {[%emt 0:00:25]} Nc6 {[%emt 0:08:12]} 16. Nd5 {[%emt 0:01:50]} Qd8 {[%emt 0:04:47]} 17. Re1 {[%emt 0:02:30]} Bb7 {[%emt 0:06:49]} 18. Nd2 {[%emt 0:16:20]} Ne5 {[%emt 0:02:54]} 19. Ba2 {[%emt 0:00:44]} a5 {[%emt 0:16:45]} 20. b5 {[%emt 0:00:45]} Nc5 {[%emt 0:04:23]} 21. Re3 {[%emt 0:01:52]} Rb8 {[%emt 0:03:52]} 22. f4 {[%emt 0:00:39]} Ned3 {[%emt 0:01:27]} 23. Ne7+ {[%emt 0:09:17]} Kh8 {[%emt 0:00:05]} 24. f5 {[%emt 0:03:36]} Re8 {[%emt 0:10:17]} 25. f6 {[%emt 0:00:55]} gxf6 {[%emt 0:00:09]} 26. Qf1 {[%emt 0:01:09]} Nd7 {[%emt 0:00:56]} 27. Qxd3 {[%emt 0:00:39]} Rxe7 {[%emt 0:00:49]} 28. Bb1 {[%emt 0:00:08]} Nf8 {[%emt 0:00:50]} 29. Rxe7 {[%emt 0:00:51]} Qxe7 {[%emt 0:00:07]} 30. Ra4 {[%emt 0:00:28]} Re8 {[%emt 0:01:15]} 31. Nf1 {[%emt 0:00:35]} Ng6 {[%emt 0:00:39]} 32. Qf5 {[%emt 0:00:18]} Kg7 {[%emt 0:00:41]} 33. Rxa5 {[%emt 0:00:18]} Bxg2 {[%emt 0:00:40]} 34. Bd3 {[%emt 0:00:50]} Ba8 {[%emt 0:01:33]} 35. Ra4 {[%emt 0:00:22]} Qb7 {[%emt 0:00:15]} 36. Rg4 {[%emt 0:00:43]} Re5 {[%emt 0:00:05]} 0-1

[Event "Biel Master Tournament 2019"]
[Site "Biel"]
[Date "2019.07.31"]
[Round "9.9"]
[White "Aryan, Chopra"]
[Black "Gopal G.N."]
[Result "1/2-1/2"]
[ECO "B90"]
[WhiteElo "2553"]
[BlackElo "2594"]
[Annotator "ChessBase"]
[PlyCount "87"]
[EventDate "2019.07.20"]
[EventType "swiss"]
[EventCountry "SUI"]
[SourceTitle "playchess.com"]
[Source "ChessBase"]
[SourceQuality "1"]
[TimeControl "40/5400+30:1800+30"]

1. e4 {[%emt 0:00:00]} c5 {[%emt 0:00:00]} 2. Nf3 {[%emt 0:00:00]} d6 {[%emt 0:00:00]} 3. d4 {[%emt 0:00:00]} cxd4 {[%emt 0:00:00]} 4. Nxd4 {[%emt 0:00:00]} Nf6 {[%emt 0:00:00]} 5. Nc3 {[%emt 0:00:00]} a6 {[%emt 0:00:00]} 6. Nb3 {[%emt 0:00:00]} Nbd7 {[%emt 0:02:35]} 7. a4 {[%emt 0:00:18]} b6 {[%emt 0:06:14]} 8. g4 {[%emt 0:01:25]} Bb7 {[%emt 0:00:17]} 9. Bg2 {[%emt 0:00:40]} h6 {[%emt 0:01:30]} 10. h4 {[%emt 0:02:54]} g6 {[%emt 0:05:40]} 11. Qe2 {[%emt 0:17:18]} Rc8 {[%emt 0:18:36]} 12. Rh3 {[%emt 0:10:24]} Bg7 {[%emt 0:10:06]} 13. h5 {[%emt 0:15:09]} g5 {[%emt 0:06:31]} 14. Nd4 {[%emt 0:01:55]} Ne5 {[%emt 0:14:21]} 15. Nf5 {[%emt 0:01:33]} Bf8 {[%emt 0:00:08]} 16. f4 {[%emt 0:03:27]} gxf4 {[%emt 0:00:10]} 17. Bxf4 {[%emt 0:00:21]} e6 {[%emt 0:01:35]} 18. O-O-O {[%emt 0:19:38]} Qc7 {[%emt 0:09:34]} 19. Nxh6 {[%emt 0:01:05]} Rxh6 {[%emt 0:08:55]} 20. g5 {[%emt 0:00:40]} Rxh5 {[%emt 0:00:32]} 21. Bxe5 {[%emt 0:09:02]} dxe5 {[%emt 0:01:20]} 22. Rxh5 {[%emt 0:03:32]} Nxh5 {[%emt 0:00:04]} 23. Qxh5 {[%emt 0:00:05]} b5 {[%emt 0:04:17]} 24. g6 {[%emt 0:05:33]} b4 {[%emt 0:00:58]} 25. gxf7+ {[%emt 0:00:15]} Qxf7 {[%emt 0:00:19]} 26. Qxf7+ {[%emt 0:00:34]} Kxf7 {[%emt 0:00:01]} 27. Rd7+ {[%emt 0:00:10]} Kf6 {[%emt 0:04:49]} 28. Rxb7 {[%emt 0:00:07]} bxc3 {[%emt 0:00:01]} 29. Rb6 {[%emt 0:04:30]} Bc5 {[%emt 0:03:53]} 30. Rxe6+ {[%emt 0:00:59]} Kxe6 {[%emt 0:00:04]} 31. Bh3+ {[%emt 0:00:05]} Kd6 {[%emt 0:00:04]} 32. Bxc8 {[%emt 0:00:05]} cxb2+ {[%emt 0:00:25]} 33. Kxb2 {[%emt 0:00:01]} a5 {[%emt 0:00:14]} 34. Kb3 {[%emt 0:00:08]} Kc6 {[%emt 0:01:12]} 35. Kc4 {[%emt 0:00:06]} Bf2 {[%emt 0:02:02]} 36. Ba6 {[%emt 0:00:07]} Be3 {[%emt 0:00:44]} 37. Bb5+ {[%emt 0:00:09]} Kd6 {[%emt 0:00:44]} 38. Be8 {[%emt 0:00:07]} Kc7 {[%emt 0:00:27]} 39. Kd5 {[%emt 0:00:32]} Bd4 {[%emt 0:00:22]} 40. c4 {[%emt 0:00:18]} Bc3 {[%emt 0:00:31]} 41. c5 {[%emt 0:30:12]} Bd4 {[%emt 0:30:36]} 42. Kc4 {[%emt 0:00:16]} Be3 {[%emt 0:00:26]} 43. Kb5 {[%emt 0:00:06]} Bd2 {[%emt 0:00:01]} 44. c6 {[%emt 0:00:16]} 1/2-1/2